bitfinex/quotes_BTCUSD_20250314
["timestamp","ask_amount","ask_price","bid_price","bid_amount"]
[1741961212520,0.082,83574.0,83573.0,0.011965]
[1741961212725,0.01876988,83582.0,83573.0,0.011965]
[1741961212726,0.01876988,83582.0,83581.0,0.011964]
[1741961212937,0.01876988,83582.0,83573.0,0.011965]
[1741961212938,0.011965,83576.0,83568.0,0.011966]
[1741961213166,0.239301,83577.0,83567.0,0.19408]
[1741961213316,0.01876988,83582.0,83556.0,0.23936]
[1741961213317,0.239345,83562.0,83556.0,0.23936]
[1741961213519,0.251312,83562.0,83557.0,0.19392]
[1741961213746,0.251304,83564.0,83558.0,0.239352]
[1741961213946,0.239335,83565.0,83558.0,0.239352]
[1741961213947,0.239323,83570.0,83563.0,0.23934]
[1741961214156,0.01877035,83564.0,83563.0,0.251307]
[1741961214490,0.251281,83572.0,83566.0,0.239329]
[1741961214614,0.251272,83575.0,83563.0,0.23934]
[1741961214816,0.01454085,83578.0,83565.0,0.239332]
[1741961215137,0.01454085,83578.0,83563.0,0.239338]
[1741961215138,0.239324,83569.0,83563.0,0.239338]
[1741961215334,0.011967,83563.0,83551.0,0.011968]
[1741961215550,0.011967,83563.0,83547.0,0.011969]
[1741961215551,0.011967,83561.0,83547.0,0.011969]
[1741961215712,0.3,83569.0,83520.0,0.0119692]
[1741961215713,0.54650549,83560.0,83520.0,0.0119692]
[1741961215915,0.01454085,83555.0,83521.0,0.239459]
[1741961216122,0.251408,83530.0,83524.0,0.23945]
[1741961216386,0.251401,83532.0,83522.0,0.19435901]
[1741961216587,0.3,83533.0,83529.0,0.239436]
[1741961216902,0.3,83533.0,83530.0,0.00107334]
[1741961217112,0.3,83533.0,83531.0,0.239429]
[1741961217319,0.3,83533.0,83531.0,0.2514]
[1741961217536,0.05,83564.0,83530.0,0.239431]
[1741961217537,0.251388,83536.0,83532.0,0.00106192]
[1741961217664,0.551375,83541.0,83533.0,0.239426]
[1741961217871,0.3,83539.0,83535.0,0.239418]
[1741961218091,0.239407,83540.0,83539.0,0.239409]
[1741961218092,0.01877723,83540.0,83539.0,0.239409]
[1741961218454,0.011968,83555.0,83549.0,0.239378]
[1741961218585,0.251295,83567.0,83551.0,0.011968]
[1741961218800,0.239313,83573.0,83561.0,0.011967]
[1741961218994,0.01877243,83564.0,83556.0,0.011968]
[1741961219204,0.239341,83563.0,83559.0,0.239349]
[1741961219407,0.239377,83551.0,83542.0,0.239399]
[1741961219676,0.011971,83535.0,83520.0,2e-07]
[1741961219849,0.23944,83529.0,83522.0,0.239457]
[1741961220060,0.23944,83529.0,83521.0,0.239459]
[1741961220061,0.239443,83527.0,83521.0,0.239459]
[1741961220274,0.011971,83532.0,83520.0,2e-07]
[1741961220275,0.3,83533.0,83527.0,0.239441]
[1741961220476,0.01877816,83528.0,83527.0,0.239441]
[1741961220670,0.01877816,83528.0,83526.0,0.239446]
[1741961221018,0.01877816,83528.0,83527.0,0.011972]
[1741961221226,0.239413,83538.0,83528.0,0.011972]
[1741961221402,0.239384,83548.0,83531.0,0.011971]
[1741961221696,0.011966,83568.0,83554.0,0.011968]
[1741961221916,0.239349,83560.0,83555.0,0.19136]
[1741961222117,0.239358,83557.0,83555.0,0.19136]
[1741961222433,0.239358,83557.0,83545.0,0.011969]
[1741961222434,0.011969,83543.0,83534.0,0.251391]
[1741961222633,0.011972,83526.0,83520.0,2e-07]
[1741961222750,0.011972,83526.0,83522.0,0.239457]
[1741961222949,0.239457,83522.0,83520.0,2e-07]
[1741961223148,0.3,83535.0,83520.0,2e-07]
[1741961223149,0.011971,83529.0,83521.0,0.19104]
[1741961223392,0.25138,83539.0,83527.0,0.011972]
[1741961223599,0.23941,83539.0,83523.0,0.011972]
[1741961223833,0.23941,83539.0,83522.0,0.19092]
[1741961223834,0.239423,83534.0,83530.0,0.239433]
[1741961224034,0.01197,83542.0,83522.0,0.430376]
[1741961224035,0.31454085,83546.0,83533.0,0.011971]
[1741961224249,0.3,83546.0,83534.0,0.239423]
[1741961224411,0.3,83546.0,83544.0,0.239394]
[1741961224760,0.239373,83552.0,83542.0,0.01197]
[1741961224761,0.239352,83559.0,83552.0,0.011968]
[1741961224962,0.54650549,83580.0,83552.0,0.011968]
[1741961224963,0.011966,83564.0,83552.0,0.011968]
[1741961225230,0.3,83559.0,83555.0,0.239361]
[1741961225437,0.239366,83554.0,83550.0,0.239377]
[1741961225627,0.239364,83555.0,83549.0,0.011969]
[1741961225628,0.3,83559.0,83549.0,0.011969]
[1741961225831,0.011967,83560.0,83552.0,0.011968]
[1741961225992,0.239366,83554.0,83551.0,0.239374]
[1741961226187,0.251329,83556.0,83547.0,0.011969]
[1741961226393,0.251329,83556.0,83525.0,0.50328511]
[1741961226394,0.3,83564.0,83554.0,0.011968]
[1741961226594,0.3,83564.0,83563.0,0.011967]
[1741961226801,0.311966,83564.0,83563.0,0.19016]
[1741961226977,0.01197,83536.0,83529.0,0.011971]
[1741961227179,0.01197,83536.0,83520.0,2e-07]
[1741961227180,0.239458,83522.0,83520.0,2e-07]
[1741961227381,0.251426,83524.0,83521.0,0.19024]
[1741961227382,0.239456,83523.0,83521.0,0.19024]
[1741961227577,0.311972,83522.0,83521.0,0.19024]
[1741961227777,0.311972,83522.0,83520.0,2e-07]
[1741961227778,0.551433,83521.0,83520.0,2e-07]
[1741961227983,0.251421,83525.0,83520.0,2e-07]
[1741961228188,0.011971,83534.0,83529.0,0.239434]
[1741961228477,0.23946,83522.0,83520.0,2e-07]
[1741961228712,0.011973,83521.0,83520.0,2e-07]
[1741961229059,0.32651385,83521.0,83520.0,2e-07]
[1741961230243,0.25143,83525.0,83520.0,2e-07]
[1741961230244,0.01877922,83528.0,83520.0,2e-07]
[1741961230440,0.239458,83522.0,83520.0,2e-07]
[1741961230766,0.01877922,83528.0,83525.0,0.239448]
[1741961230941,0.01877922,83528.0,83526.0,0.239446]
[1741961231150,0.01877922,83528.0,83522.0,0.011972]
[1741961231151,0.27019122,83528.0,83527.0,0.18968]
[1741961231532,0.58473207,83528.0,83527.0,0.18968]
[1741961231732,0.58473207,83528.0,83513.0,0.0123124]
[1741961231733,0.011972,83527.0,83513.0,0.0123124]
[1741961231956,0.251428,83523.0,83513.0,0.0003384]
[1741961232119,0.251433,83521.0,83513.0,0.0003384]
[1741961232324,0.3,83526.0,83523.0,0.239451]
[1741961232545,0.3,83521.0,83520.0,2e-07]
[1741961232766,0.311973,83521.0,83520.0,2e-07]
[1741961232968,0.3,83521.0,83520.0,2e-07]
[1741961233126,0.539453,83524.0,83521.0,0.239458]
[1741961233326,0.011971,83532.0,83520.0,2e-07]
[1741961233327,0.3,83531.0,83524.0,0.23945]
[1741961233535,0.01197,83542.0,83531.0,0.011971]
[1741961233732,0.011969,83546.0,83540.0,0.01197]
[1741961233945,0.2394,83542.0,83532.0,0.011971]
[1741961234145,0.239398,83543.0,83538.0,0.01197]
[1741961234346,0.239398,83543.0,83540.0,0.239406]
[1741961234555,0.239401,83542.0,83538.0,0.251379]
[1741961234933,0.239458,83522.0,83513.0,0.2398204]
[1741961235152,0.239433,83531.0,83525.0,0.011972]
[1741961235300,0.239433,83531.0,83527.0,0.239443]
[1741961235504,0.239431,83532.0,83527.0,0.239442]
[1741961235712,0.54650549,83570.0,83542.0,0.01197]
[1741961235940,0.3,83542.0,83539.0,0.18824]
[1741961236165,0.011969,83543.0,83539.0,0.18824]
[1741961236395,0.31197,83540.0,83539.0,0.18824]
[1741961236750,0.011969,83544.0,83539.0,0.18824]
[1741961236751,0.011969,83548.0,83539.0,0.20021]
[1741961236970,0.011969,83549.0,83539.0,0.20021]
[1741961237178,0.251342,83552.0,83549.0,0.23938]
[1741961237374,0.251342,83552.0,83544.0,0.011969]
[1741961237375,0.3,83548.0,83544.0,0.011969]
[1741961237573,0.011968,83552.0,83544.0,0.011969]
[1741961237574,0.239374,83551.0,83544.0,0.011969]
[1741961237803,0.358993,83567.0,83539.0,0.18824]
[1741961237804,0.011969,83545.0,83539.0,0.18824]
[1741961238158,0.239406,83540.0,83539.0,0.18824]
[1741961238372,0.011969,83547.0,83539.0,0.18824]
[1741961238373,0.27012746,83548.0,83543.0,0.239396]
[1741961238572,0.27012746,83548.0,83541.0,0.01197]
[1741961238573,0.239386,83547.0,83544.0,0.239394]
[1741961238780,0.01877446,83548.0,83545.0,0.239391]
[1741961238992,0.01877446,83548.0,83544.0,0.011969]
[1741961239167,0.01877446,83548.0,83546.0,0.251358]
[1741961239386,0.01877446,83548.0,83544.0,0.239394]
[1741961239558,0.239387,83547.0,83544.0,0.239394]
[1741961239769,0.011969,83547.0,83540.0,0.01197]
[1741961239972,0.011971,83535.0,83528.0,0.011972]
[1741961240137,0.01197,83536.0,83531.0,0.011971]
[1741961240337,0.239421,83535.0,83532.0,0.239429]
[1741961240545,0.251387,83536.0,83532.0,0.239429]
[1741961240752,0.01877698,83535.0,83534.0,0.251394]
[1741961241349,0.036004,83608.0,83563.0,0.011967]
[1741961241350,0.011965,83571.0,83563.0,0.011967]
[1741961241596,0.23934,83563.0,83559.0,0.239349]
[1741961241942,0.551318,83559.0,83558.0,0.18712]
[1741961242189,0.011969,83543.0,83538.0,0.251381]
[1741961242374,0.011969,83545.0,83539.0,0.18708]
[1741961242552,0.011968,83555.0,83539.0,0.18708]
[1741961242781,0.3,83553.0,83552.0,0.239371]
[1741961242976,0.011968,83552.0,83542.0,0.01197]
[1741961243174,0.239384,83548.0,83542.0,0.01197]
[1741961243475,0.239375,83551.0,83545.0,0.239391]
[1741961243683,0.239374,83551.0,83547.0,0.239385]
[1741961243891,0.239378,83550.0,83546.0,0.011969]
[1741961244046,0.23938,83549.0,83545.0,0.23939]
[1741961244245,0.239383,83548.0,83545.0,0.239391]
[1741961244656,0.011968,83552.0,83461.0,1.12449921]
[1741961244657,0.01197,83542.0,83530.0,0.251403]
[1741961245006,0.011972,83528.0,83524.0,0.76036]
[1741961245207,0.551429,83522.0,83521.0,0.000339]
[1741961245415,0.56596985,83522.0,83521.0,0.000339]
[1741961245618,0.3,83522.0,83521.0,0.000339]
[1741961245817,0.311972,83522.0,83521.0,0.000339]
[1741961246049,0.3,83522.0,83521.0,0.01252077]
[1741961246200,0.3,83522.0,83521.0,0.00054777]
[1741961246403,0.011968,83553.0,83542.0,0.01197]
[1741961246603,0.4124,83574.0,83521.0,0.00054777]
[1741961246604,0.011969,83544.0,83543.0,0.1864]
[1741961246803,0.251363,83544.0,83543.0,8.319e-05]
[1741961247149,0.251363,83544.0,83527.0,0.18628]
[1741961247150,0.3,83528.0,83527.0,0.18628]
[1741961247265,0.311972,83528.0,83527.0,0.18628]
[1741961247467,0.311972,83528.0,83527.0,0.18643376]
[1741961247669,0.311972,83528.0,83527.0,0.18628]
[1741961248283,0.56596985,83522.0,83521.0,0.000339]
[1741961249222,0.58475146,83522.0,83521.0,0.000339]
[1741961249633,0.33075361,83522.0,83521.0,0.000339]
[1741961249857,0.33075361,83522.0,83509.0,0.011974]
[1741961249858,0.011973,83517.0,83510.0,0.239491]
[1741961250061,0.011973,83517.0,83505.0,0.239504]
[1741961250062,0.011974,83511.0,83505.0,0.239504]
[1741961250261,0.239509,83505.0,83491.0,0.239544]
[1741961250510,0.311975,83504.0,83475.0,0.76036]
[1741961250632,0.311975,83504.0,83497.0,0.18572]
[1741961251083,0.25829395,83505.0,83497.0,0.18572]
[1741961251084,0.01878495,83505.0,83504.0,0.011975]
[1741961251286,0.01878495,83505.0,83497.0,0.18572]
[1741961251287,0.3,83504.0,83497.0,0.18572]
[1741961251469,0.311975,83504.0,83497.0,0.18572]
[1741961252081,0.01878495,83505.0,83504.0,0.239509]
[1741961252364,0.01878495,83505.0,83499.0,0.239521]
[1741961252526,0.01878495,83505.0,83504.0,0.197055]
[1741961252739,0.01878495,83505.0,83504.0,0.18508]
[1741961252884,0.33075995,83505.0,83504.0,0.18508]
[1741961253693,0.551484,83504.0,83503.0,0.0003382]
[1741961253895,0.56602485,83504.0,83503.0,0.0003382]
[1741961254697,0.311975,83504.0,83503.0,0.0003382]
[1741961255043,0.311975,83504.0,83503.0,0.00062902]
[1741961255044,0.56602485,83504.0,83503.0,0.00062902]
[1741961255198,0.551484,83504.0,83503.0,0.00062902]
[1741961255409,0.01878495,83505.0,83504.0,0.011975]
[1741961255609,0.01878495,83505.0,83503.0,0.00062902]
[1741961255810,0.01878495,83505.0,83504.0,0.00028511]
[1741961256242,0.01878495,83505.0,83503.0,0.0003382]
[1741961256442,0.011975,83504.0,83503.0,0.0003382]
[1741961256649,0.07868885,83504.0,83503.0,0.0003382]
[1741961256868,0.02651585,83504.0,83503.0,0.0003382]
[1741961258015,0.73891585,83504.0,83503.0,2e-07]
[1741961258217,0.73891585,83504.0,83471.0,0.0008]
[1741961258218,0.551581,83472.0,83471.0,0.0008]
[1741961258417,0.56612185,83472.0,83471.0,0.0008]
[1741961258972,0.57783362,83472.0,83471.0,0.0008]
[1741961259522,1.03249745,83472.0,83471.0,0.0008]
[1741961259699,1.03249745,83472.0,83452.0,0.0003378]
[1741961259700,0.56613285,83468.0,83452.0,0.0003378]
[1741961260571,0.551632,83455.0,83452.0,0.0003378]
[1741961260792,1.10417285,83455.0,83452.0,0.0003378]
[1741961260985,1.10417285,83455.0,83454.0,8e-07]
[1741961261196,1.22374788,83455.0,83454.0,8e-07]
[1741961261353,1.24254681,83455.0,83454.0,8e-07]
[1741961261804,0.99737178,83455.0,83454.0,8e-07]
[1741961262564,0.98283093,83455.0,83454.0,8e-07]
[1741961262766,0.74318093,83455.0,83454.0,8e-07]
[1741961262966,0.75772178,83455.0,83454.0,8e-07]
[1741961263229,0.31879893,83455.0,83454.0,0.1846808]
[1741961263433,0.3,83455.0,83454.0,0.1846808]
[1741961263723,0.011978,83480.0,83458.0,0.0484]
[1741961263952,0.239608,83470.0,83465.0,0.23962]
[1741961264252,0.239608,83470.0,83464.0,0.239622]
[1741961264462,0.011978,83485.0,83468.0,0.01198]
[1741961264635,0.011978,83480.0,83469.0,0.0815]
[1741961264831,0.239586,83478.0,83470.0,0.01198]
[1741961265042,0.239587,83477.0,83472.0,0.239599]
[1741961265248,0.011977,83489.0,83482.0,0.0803]
[1741961265464,0.011978,83484.0,83483.0,0.18452]
[1741961265665,0.239615,83467.0,83466.0,0.0487]
[1741961265835,0.011979,83479.0,83470.0,0.01198]
[1741961266011,0.011978,83486.0,83477.0,0.011979]
[1741961266214,0.011978,83482.0,83476.0,0.239589]
[1741961266416,0.251554,83481.0,83475.0,0.23959]
[1741961266613,0.311977,83489.0,83484.0,0.239564]
[1741961266838,0.011978,83485.0,83474.0,0.239594]
[1741961267005,0.011978,83485.0,83478.0,0.239582]
[1741961267203,0.011978,83483.0,83470.0,0.239604]
[1741961267404,0.011979,83475.0,83447.0,0.0003386]
[1741961267604,0.551581,83472.0,83471.0,0.00665572]
[1741961267831,0.239627,83463.0,83461.0,0.18376]
[1741961268067,0.239628,83463.0,83461.0,0.18376]
[1741961268304,0.02652185,83462.0,83461.0,0.18376]
[1741961268510,0.02652185,83462.0,83454.0,8e-07]
[1741961268511,0.251632,83455.0,83454.0,8e-07]
[1741961268908,0.6510837,83455.0,83454.0,8e-07]
[1741961269074,0.551632,83455.0,83454.0,8e-07]
[1741961269280,0.3,83455.0,83454.0,8e-07]
[1741961269556,0.56617285,83455.0,83454.0,8e-07]
[1741961269673,0.32652285,83455.0,83454.0,8e-07]
[1741961270094,0.32652285,83455.0,83452.0,6e-07]
[1741961270095,0.02652285,83453.0,83452.0,6e-07]
[1741961270312,0.02652285,83453.0,83446.0,1e-06]
[1741961270313,0.3,83447.0,83446.0,1e-06]
[1741961270528,0.73892385,83447.0,83446.0,1e-06]
[1741961270732,0.75772449,83447.0,83446.0,1e-06]
[1741961270954,0.78963192,83447.0,83446.0,1e-06]
[1741961271164,0.75772449,83447.0,83446.0,1e-06]
[1741961271375,0.87729952,83447.0,83446.0,1e-06]
[1741961272031,0.88229952,83447.0,83446.0,1e-06]
[1741961273006,0.551686,83437.0,83436.0,4e-07]
[1741961273211,0.97862685,83437.0,83436.0,4e-07]
[1741961273439,0.97862685,83437.0,83395.0,0.0832]
[1741961273440,0.61474185,83432.0,83431.0,4e-07]
[1741961273609,0.61474185,83432.0,83399.0,0.0001693]
[1741961273610,0.251737,83420.0,83399.0,0.0001693]
[1741961273809,0.97867785,83420.0,83399.0,0.0001693]
[1741961274063,0.97867785,83420.0,83419.0,6e-07]
[1741961274308,0.99066372,83420.0,83419.0,6e-07]
[1741961274667,0.97867785,83420.0,83419.0,6e-07]
[1741961274991,0.251737,83420.0,83419.0,6e-07]
[1741961275297,0.3,83420.0,83419.0,6e-07]
[1741961275534,0.011986,83426.0,83419.0,0.0069542]
[1741961275707,0.311987,83420.0,83419.0,6e-07]
[1741961276388,0.239749,83421.0,83419.0,6e-07]
[1741961276570,0.01454085,83424.0,83419.0,6e-07]
[1741961276984,0.25427985,83424.0,83419.0,0.2397516]
[1741961277341,0.01880354,83423.0,83422.0,0.011987]
[1741961277482,0.01880354,83423.0,83422.0,0.239744]
[1741961277692,0.01880354,83423.0,83419.0,6e-07]
[1741961277896,0.03079054,83423.0,83422.0,0.18192]
[1741961278099,0.251737,83420.0,83419.0,6e-07]
[1741961278957,0.3700491,83420.0,83419.0,6e-07]
[1741961279133,0.26627785,83420.0,83419.0,6e-07]
[1741961280360,0.01454085,83420.0,83419.0,6e-07]
[1741961280590,0.25429085,83420.0,83419.0,6e-07]
[1741961280785,0.02652785,83420.0,83419.0,6e-07]
[1741961280992,0.01454085,83420.0,83419.0,6e-07]
[1741961281147,0.01880354,83423.0,83420.0,0.316347]
[1741961281352,0.239745,83422.0,83420.0,0.0766]
[1741961281697,0.251737,83420.0,83419.0,6e-07]
[1741961281901,0.23975,83420.0,83419.0,6e-07]
[1741961282041,0.01880354,83423.0,83419.0,6e-07]
[1741961282263,0.01880354,83423.0,83419.0,0.2397526]
[1741961282466,0.011987,83422.0,83419.0,6e-07]
[1741961282708,0.239749,83421.0,83419.0,6e-07]
[1741961282898,0.01880354,83423.0,83419.0,6e-07]
[1741961283300,0.239748,83421.0,83419.0,6e-07]
[1741961283508,0.01880354,83423.0,83421.0,0.239745]
[1741961283644,0.239748,83421.0,83419.0,6e-07]
[1741961283847,0.011987,83420.0,83419.0,6e-07]
[1741961284048,0.011987,83420.0,83419.0,0.0010006]
[1741961284558,0.011987,83420.0,83419.0,6e-07]
[1741961284807,0.02652785,83420.0,83419.0,6e-07]
[1741961285189,0.56627785,83420.0,83419.0,6e-07]
[1741961285797,0.251737,83420.0,83419.0,6e-07]
[1741961286341,0.239747,83421.0,83419.0,6e-07]
[1741961286511,0.23975,83420.0,83419.0,6e-07]
[1741961286693,0.251737,83420.0,83419.0,6e-07]
[1741961286920,0.26627785,83420.0,83419.0,6e-07]
[1741961287129,0.37107612,83420.0,83419.0,6e-07]
[1741961287733,0.37107612,83420.0,83419.0,0.0020006]
[1741961287934,0.37107612,83420.0,83419.0,6e-07]
[1741961288230,0.68988293,83420.0,83419.0,6e-07]
[1741961288435,0.58508466,83420.0,83419.0,0.0010006]
[1741961288634,0.58508466,83420.0,83419.0,6e-07]
[1741961289398,0.27054381,83420.0,83419.0,6e-07]
[1741961289737,0.28508466,83420.0,83419.0,6e-07]
[1741961289937,0.70465969,83420.0,83419.0,6e-07]
[1741961290160,0.70765969,83420.0,83419.0,6e-07]
[1741961290373,0.58508466,83420.0,83419.0,6e-07]
[1741961290525,0.58508466,83420.0,83390.0,0.0127926]
[1741961290526,0.551798,83400.0,83390.0,0.0127926]
[1741961290738,0.56633885,83400.0,83399.0,3e-07]
[1741961290943,0.59041938,83400.0,83399.0,3e-07]
[1741961291165,0.6092291,83400.0,83399.0,3e-07]
[1741961292087,0.6122291,83400.0,83399.0,3e-07]
[1741961292501,0.32653185,83391.0,83390.0,9e-07]
[1741961292701,0.551837,83387.0,83386.0,9e-07]
[1741961292874,0.68205012,83387.0,83386.0,9e-07]
[1741961293281,0.70086285,83387.0,83386.0,9e-07]
[1741961293493,0.551885,83371.0,83355.0,0.1786]
[1741961293898,0.551885,83371.0,83359.0,0.011996]
[1741961294076,0.551885,83371.0,83358.0,0.239926]
[1741961294077,0.56642585,83371.0,83358.0,0.239926]
[1741961294420,0.239889,83372.0,83366.0,0.011995]
[1741961294599,0.011994,83371.0,83364.0,0.251903]
[1741961294781,0.011993,83377.0,83368.0,0.2399]
[1741961294986,0.23986,83382.0,83376.0,0.011993]
[1741961295234,0.239868,83380.0,83375.0,0.430312]
[1741961295438,0.251836,83388.0,83380.0,0.011993]
[1741961295641,0.251836,83388.0,83379.0,0.239867]
[1741961295642,0.239856,83384.0,83379.0,0.239867]
[1741961295864,0.011992,83385.0,83377.0,0.1784]
[1741961296061,0.011992,83385.0,83377.0,0.418272]
[1741961296062,0.251853,83382.0,83377.0,0.418272]
[1741961296234,0.239857,83383.0,83378.0,0.239869]
[1741961296433,0.239857,83383.0,83377.0,0.1784]
[1741961296434,0.239863,83381.0,83377.0,0.1784]
[1741961296643,0.251885,83371.0,83370.0,0.1783388]
[1741961296826,0.239885,83373.0,83370.0,0.1783388]
[1741961296827,0.251882,83373.0,83370.0,0.1783388]
[1741961297019,0.251883,83372.0,83370.0,0.1783388]
[1741961297223,0.011994,83371.0,83370.0,0.0003388]
[1741961297606,0.0188126,83373.0,83370.0,0.2402298]
[1741961297867,0.0188126,83373.0,83372.0,0.011994]
[1741961298058,0.0198126,83373.0,83372.0,0.011994]
[1741961298504,0.0188126,83373.0,83372.0,0.011994]
[1741961299037,0.0188126,83373.0,83371.0,0.417891]
[1741961299242,0.0188126,83373.0,83371.0,0.178]
[1741961300058,0.0188126,83373.0,83372.0,0.140994]
[1741961300257,0.0188126,83373.0,83372.0,0.44219327]
[1741961300457,0.011992,83387.0,83378.0,0.011993]
[1741961300663,0.011991,83395.0,83388.0,0.251834]
[1741961300881,0.239829,83393.0,83389.0,0.17756]
[1741961301037,0.011991,83390.0,83389.0,0.17756]
[1741961301272,0.252879,83373.0,83372.0,0.129]
[1741961301513,0.551885,83371.0,83370.0,8e-07]
[1741961301724,0.56642585,83371.0,83370.0,8e-07]
[1741961302603,0.5852414,83371.0,83370.0,8e-07]
[1741961302981,0.27070055,83371.0,83370.0,8e-07]
[1741961303179,0.2852414,83371.0,83370.0,8e-07]
[1741961304304,0.5852414,83371.0,83370.0,8e-07]
[1741961304482,0.68600088,83371.0,83370.0,8e-07]
[1741961304685,0.56648385,83352.0,83351.0,2e-07]
[1741961305263,0.239933,83357.0,83351.0,2e-07]
[1741961305264,0.239943,83354.0,83351.0,2e-07]
[1741961305467,0.011996,83357.0,83351.0,2e-07]
[1741961305724,0.239929,83358.0,83353.0,0.239942]
[1741961305963,0.011996,83358.0,83354.0,0.00756148]
[1741961306147,0.251943,83352.0,83351.0,2e-07]
[1741961306405,0.26648385,83352.0,83351.0,2e-07]
[1741961307270,0.66751244,83352.0,83351.0,2e-07]
[1741961307499,0.56648385,83352.0,83351.0,2e-07]
[1741961310220,0.70588012,83352.0,83351.0,2e-07]
[1741961310398,0.5955245,83352.0,83351.0,2e-07]
[1741961310798,0.58630509,83352.0,83351.0,2e-07]
[1741961311242,0.58530509,83352.0,83351.0,2e-07]
[1741961311641,0.71760509,83352.0,83351.0,2e-07]
[1741961311971,0.71460509,83352.0,83351.0,2e-07]
[1741961312190,0.88418012,83352.0,83351.0,2e-07]
[1741961312369,0.83518012,83352.0,83351.0,2e-07]
[1741961312564,0.88918012,83352.0,83351.0,2e-07]
[1741961312755,0.551991,83336.0,83335.0,7e-07]
[1741961312955,0.99681185,83336.0,83335.0,7e-07]
[1741961313156,1.23199599,83336.0,83335.0,7e-07]
[1741961313368,1.27829599,83336.0,83335.0,7e-07]
[1741961313534,1.2971208,83336.0,83335.0,7e-07]
[1741961313734,1.26461169,83336.0,83335.0,7e-07]
[1741961314029,1.0453279,83336.0,83335.0,7e-07]
[1741961314278,1.0453279,83336.0,83311.0,0.0008]
[1741961314279,0.552075,83308.0,83307.0,0.0114234]
[1741961314452,0.56661585,83308.0,83307.0,0.0114234]
[1741961315216,0.5854434,83308.0,83307.0,0.0114234]
[1741961315894,0.5864434,83308.0,83307.0,0.0114234]
[1741961316336,0.5864434,83308.0,83307.0,0.0115933]
[1741961316506,0.01982755,83308.0,83307.0,0.0115933]
[1741961316660,0.001,83308.0,83307.0,0.0115933]
[1741961316866,0.001,83308.0,83307.0,0.0235963]
[1741961317497,0.001,83308.0,83307.0,0.0722963]
[1741961318154,0.012001,83322.0,83307.0,0.0115933]
[1741961318326,0.240036,83321.0,83314.0,0.240053]
[1741961318542,0.252046,83318.0,83312.0,0.240061]
[1741961318764,0.012002,83318.0,83310.0,0.012003]
[1741961319050,0.012002,83314.0,83307.0,0.0115933]
[1741961319205,0.240056,83314.0,83308.0,0.012003]
[1741961319403,0.240053,83315.0,83309.0,0.252071]
[1741961319629,0.012002,83313.0,83309.0,0.00781996]
[1741961319827,0.24007,83310.0,83307.0,0.0115933]
[1741961320031,0.26661385,83309.0,83307.0,0.0115933]
[1741961320282,0.37961273,83308.0,83307.0,0.0115933]
[1741961320431,0.32654385,83308.0,83307.0,0.0115933]
[1741961321176,0.34537215,83308.0,83307.0,0.0115933]
[1741961321384,0.35713989,83308.0,83307.0,0.0115933]
[1741961322155,0.59721189,83308.0,83307.0,0.0115933]
[1741961322365,0.2739033,83308.0,83307.0,0.0115933]
[1741961322562,0.0218283,83308.0,83307.0,0.0115933]
[1741961322899,0.2739033,83308.0,83307.0,0.01942475]
[1741961323062,0.0218283,83308.0,83307.0,0.27150275]
[1741961323228,0.0188283,83308.0,83307.0,0.0115933]
[1741961323425,0.0188283,83308.0,83307.0,0.01942475]
[1741961323849,0.0188283,83308.0,83307.0,0.27150275]
[1741961324250,0.0188283,83308.0,83307.0,0.35410275]
[1741961325288,0.28544415,83308.0,83307.0,0.01942475]
[1741961325483,0.0668662,83308.0,83307.0,0.01942475]
[1741961325684,0.0788692,83308.0,83307.0,0.01942475]
[1741961326127,0.0788692,83308.0,83307.0,0.0115933]
[1741961326956,0.012002,83314.0,83307.0,0.0115933]
[1741961327172,0.252075,83308.0,83307.0,0.0115933]
[1741961327312,0.240055,83314.0,83308.0,0.24007]
[1741961327654,0.24006,83313.0,83307.0,0.0115933]
[1741961328033,0.240063,83312.0,83307.0,0.2516663]
[1741961328240,0.240064,83311.0,83307.0,0.2516663]
[1741961328434,0.240063,83312.0,83308.0,0.240072]
[1741961328757,0.012002,83313.0,83307.0,0.2636703]
[1741961328957,0.240071,83309.0,83307.0,0.0115933]
[1741961329261,0.03082973,83311.0,83310.0,0.33407]
[1741961329262,0.01882673,83311.0,83310.0,0.33407]
[1741961329661,0.01882673,83311.0,83310.0,0.322067]
[1741961330104,0.012,83331.0,83310.0,0.082]
[1741961330317,0.24003,83323.0,83316.0,0.012002]
[1741961330525,0.01882399,83316.0,83314.0,0.240055]
[1741961330697,0.01882399,83316.0,83310.0,0.082]
[1741961330698,0.240052,83315.0,83310.0,0.082]
[1741961330910,0.01882399,83316.0,83312.0,0.24006]
[1741961331256,0.01882399,83316.0,83315.0,0.240052]
[1741961331462,0.01882399,83316.0,83315.0,0.252054]
[1741961332331,0.252075,83308.0,83289.0,0.1752]
[1741961332682,0.252075,83308.0,83297.0,0.240101]
[1741961332884,0.252075,83308.0,83296.0,0.012005]
[1741961333165,0.252075,83308.0,83294.0,0.0488]
[1741961333372,0.56661585,83308.0,83297.0,0.1752]
[1741961334591,0.552075,83308.0,83297.0,0.1752]
[1741961334760,0.240072,83308.0,83302.0,0.012004]
[1741961334941,0.252075,83308.0,83297.0,0.1752]
[1741961336077,0.56661585,83308.0,83293.0,0.0001696]
[1741961336276,0.56661585,83308.0,83293.0,0.1753696]
[1741961336656,0.40247472,83308.0,83293.0,0.1753696]
[1741961336858,0.40247472,83308.0,83293.0,0.0001696]
[1741961337083,0.012006,83287.0,83284.0,0.0694023]
[1741961337371,0.252166,83279.0,83267.0,0.0001697]
[1741961337572,0.252166,83279.0,83271.0,0.17604]
[1741961337573,0.012007,83279.0,83271.0,0.17604]
[1741961337773,0.240163,83277.0,83272.0,0.240176]
[1741961337891,0.240173,83273.0,83271.0,0.0008]
[1741961338087,0.012008,83277.0,83271.0,0.012808]
[1741961338088,0.240165,83276.0,83271.0,0.012808]